[Event "*** Titled Tuesday Blitz"]
[Site "Chess.com"]
[Date "2020.05.12"]
[Round "1"]
[White "SaySpade4VIP"]
[Black "r31415"]
[Result "1-0"]
[WhiteElo "2640"]
[BlackElo "2322"]
[TimeControl "180+1"]
[EndTime "10:08:04 PDT"]
[Termination "SaySpade4VIP won by checkmate"]

1. e4 {[%clk 0:02:54.4]} 1... d6 {[%clk 0:03:00.2]} 2. d4 {[%clk 0:02:53.5]}
2... Nf6 {[%clk 0:03:00.8]} 3. Nc3 {[%clk 0:02:52.9]} 3... g6 {[%clk 0:03:01.3]}
4. f4 {[%clk 0:02:51.4]} 4... Bg7 {[%clk 0:03:01.5]} 5. Nf3 {[%clk 0:02:51.8]}
5... O-O {[%clk 0:03:01.9]} 6. a3 {[%clk 0:02:51.7]} 6... Nc6 {[%clk 0:02:47.8]}
7. e5 {[%clk 0:02:33.4]} 7... dxe5 {[%clk 0:02:41]} 8. dxe5 {[%clk 0:02:34.2]}
8... Qxd1+ {[%clk 0:02:32.9]} 9. Nxd1 {[%clk 0:02:35.1]} 9... Ne4 {[%clk
0:02:24.6]} 10. Nf2 {[%clk 0:02:25.1]} 10... Nxf2 {[%clk 0:02:17.5]} 11. Kxf2
{[%clk 0:02:26]} 11... Bf5 {[%clk 0:02:16.9]} 12. c3 {[%clk 0:02:15.4]} 12... f6
{[%clk 0:02:04.8]} 13. Bc4+ {[%clk 0:02:09.1]} 13... Kh8 {[%clk 0:02:03.8]} 14.
exf6 {[%clk 0:02:08.8]} 14... exf6 {[%clk 0:01:54]} 15. Be3 {[%clk 0:02:03]}
15... Rfe8 {[%clk 0:01:53.5]} 16. Rhe1 {[%clk 0:02:00.2]} 16... Bf8 {[%clk
0:01:44.7]} 17. b4 {[%clk 0:01:58.4]} 17... a6 {[%clk 0:01:40.9]} 18. a4 {[%clk
0:01:53.8]} 18... Rad8 {[%clk 0:01:33]} 19. a5 {[%clk 0:01:47]} 19... Be6 {[%clk
0:01:13.1]} 20. Bf1 {[%clk 0:01:41.1]} 20... Bd5 {[%clk 0:00:43.3]} 21. b5
{[%clk 0:01:30]} 21... Nb8 {[%clk 0:00:38.1]} 22. bxa6 {[%clk 0:01:05]} 22...
bxa6 {[%clk 0:00:36.9]} 23. Bd4 {[%clk 0:00:48.5]} 23... Kg7 {[%clk 0:00:34.6]}
24. g4 {[%clk 0:00:45.6]} 24... Kf7 {[%clk 0:00:29.9]} 25. h3 {[%clk 0:00:42.9]}
25... Bd6 {[%clk 0:00:28.4]} 26. Be3 {[%clk 0:00:42]} 26... Bb7 {[%clk
0:00:24.5]} 27. Bc4+ {[%clk 0:00:38.6]} 27... Kf8 {[%clk 0:00:21.4]} 28. f5
{[%clk 0:00:36.9]} 28... g5 {[%clk 0:00:21.5]} 29. Nd4 {[%clk 0:00:34.7]} 29...
Bc8 {[%clk 0:00:19]} 30. h4 {[%clk 0:00:30.7]} 30... h6 {[%clk 0:00:18.2]} 31.
Rab1 {[%clk 0:00:21.2]} 31... Bd7 {[%clk 0:00:15.9]} 32. Be6 {[%clk 0:00:14.5]}
32... Kg7 {[%clk 0:00:08.6]} 33. Bxd7 {[%clk 0:00:13.5]} 33... Rxd7 {[%clk
0:00:09.5]} 34. Ne6+ {[%clk 0:00:13.8]} 34... Kf7 {[%clk 0:00:09.3]} 35. Rb7
{[%clk 0:00:11.2]} 35... Nc6 {[%clk 0:00:09]} 36. hxg5 {[%clk 0:00:09.6]} 36...
hxg5 {[%clk 0:00:08.8]} 37. Rh1 {[%clk 0:00:10.2]} 37... Ne5 {[%clk 0:00:07.4]}
38. Rh7+ {[%clk 0:00:08.3]} 38... Kg8 {[%clk 0:00:07.8]} 39. Rxd7 {[%clk
0:00:08.3]} 39... Nxd7 {[%clk 0:00:08.7]} 40. Ra7 {[%clk 0:00:08.9]} 40... Ne5
{[%clk 0:00:09.1]} 41. Rxa6 {[%clk 0:00:08]} 41... Nxg4+ {[%clk 0:00:09.3]} 42.
Kf3 {[%clk 0:00:08.4]} 42... Nh6 {[%clk 0:00:09.3]} 43. Nd4 {[%clk 0:00:08]}
43... Re5 {[%clk 0:00:08.2]} 44. Ra8+ {[%clk 0:00:07.5]} 44... Kf7 {[%clk
0:00:08]} 45. a6 {[%clk 0:00:07.4]} 45... Nxf5 {[%clk 0:00:08.2]} 46. Bf2 {[%clk
0:00:05.2]} 46... Ne7 {[%clk 0:00:04.8]} 47. a7 {[%clk 0:00:04.3]} 47... Ra5
{[%clk 0:00:05.4]} 48. Nb3 {[%clk 0:00:03.4]} 48... Ra3 {[%clk 0:00:04.4]} 49.
Rh8 {[%clk 0:00:03.5]} 49... Rxb3 {[%clk 0:00:02.1]} 50. a8=Q {[%clk 0:00:03.5]}
50... Rxc3+ {[%clk 0:00:03]} 51. Kg2 {[%clk 0:00:04]} 51... Ng6 {[%clk
0:00:03.1]} 52. Qe8+ {[%clk 0:00:04.3]} 52... Kg7 {[%clk 0:00:03.5]} 53. Qg8#
{[%clk 0:00:04.8]} 1-0

[Event "*** Titled Tuesday Blitz"]
[Site "Chess.com"]
[Date "2020.05.12"]
[Round "1"]
[White "agrigo3"]
[Black "tacticthunder"]
[Result "0-1"]
[WhiteElo "2291"]
[BlackElo "2610"]
[TimeControl "180+1"]
[EndTime "10:08:04 PDT"]
[Termination "tacticthunder won on time"]

1. Nf3 {[%clk 0:02:58.7]} 1... Nf6 {[%clk 0:02:59.1]} 2. g3 {[%clk 0:02:57.9]}
2... b5 {[%clk 0:02:55.1]} 3. Bg2 {[%clk 0:02:57.3]} 3... Bb7 {[%clk 0:02:55.4]}
4. O-O {[%clk 0:02:57.3]} 4... e6 {[%clk 0:02:55.6]} 5. d3 {[%clk 0:02:56.2]}
5... c5 {[%clk 0:02:52.7]} 6. e4 {[%clk 0:02:55.2]} 6... Be7 {[%clk 0:02:49]} 7.
e5 {[%clk 0:02:52.4]} 7... Nd5 {[%clk 0:02:48.5]} 8. c4 {[%clk 0:02:52.3]} 8...
Nc7 {[%clk 0:02:46.6]} 9. Qe2 {[%clk 0:02:33.9]} 9... O-O {[%clk 0:02:41.2]} 10.
Nc3 {[%clk 0:02:33.2]} 10... a6 {[%clk 0:02:41.1]} 11. Ne4 {[%clk 0:02:31.5]}
11... d6 {[%clk 0:02:23.2]} 12. exd6 {[%clk 0:02:22.8]} 12... Bxd6 {[%clk
0:02:24.1]} 13. Nxd6 {[%clk 0:02:18.3]} 13... Qxd6 {[%clk 0:02:25]} 14. Bf4
{[%clk 0:02:18.2]} 14... Qb6 {[%clk 0:02:24.9]} 15. d4 {[%clk 0:01:54.3]} 15...
Nd7 {[%clk 0:02:17.2]} 16. Ne5 {[%clk 0:01:20.5]} 16... Nxe5 {[%clk 0:01:32.6]}
17. Bxb7 {[%clk 0:01:10.7]} 17... Qxb7 {[%clk 0:01:28.8]} 18. Bxe5 {[%clk
0:01:10.7]} 18... cxd4 {[%clk 0:01:27.2]} 19. Bxd4 {[%clk 0:01:10.3]} 19... bxc4
{[%clk 0:01:24.6]} 20. Qxc4 {[%clk 0:01:09]} 20... Nd5 {[%clk 0:01:24.3]} 21.
Rac1 {[%clk 0:01:03.7]} 21... Qb5 {[%clk 0:01:23.2]} 22. Rfd1 {[%clk 0:00:50.7]}
22... Rfd8 {[%clk 0:01:17.4]} 23. a4 {[%clk 0:00:39.7]} 23... Qxc4 {[%clk
0:01:12.9]} 24. Rxc4 {[%clk 0:00:39.1]} 24... Rab8 {[%clk 0:01:13.1]} 25. Rdc1
{[%clk 0:00:33.9]} 25... f6 {[%clk 0:01:04.2]} 26. R1c2 {[%clk 0:00:27.3]} 26...
Nb4 {[%clk 0:00:39.9]} 27. R2c3 {[%clk 0:00:23.1]} 27... e5 {[%clk 0:00:36.7]}
28. Ba7 {[%clk 0:00:22.2]} 28... Rb7 {[%clk 0:00:34.9]} 29. Rc8 {[%clk
0:00:20.1]} 29... Rxc8 {[%clk 0:00:33.7]} 30. Rxc8+ {[%clk 0:00:20.1]} 30... Kf7
{[%clk 0:00:34.4]} 31. Bc5 {[%clk 0:00:15.3]} 31... Nd3 {[%clk 0:00:34]} 32.
Rf8+ {[%clk 0:00:10.7]} 32... Kg6 {[%clk 0:00:32.7]} 33. Ba3 {[%clk 0:00:11.2]}
33... Nxb2 {[%clk 0:00:32]} 34. Bxb2 {[%clk 0:00:11.3]} 34... Rxb2 {[%clk
0:00:32.9]} 35. Ra8 {[%clk 0:00:11.2]} 35... Rb6 {[%clk 0:00:32.7]} 36. h4
{[%clk 0:00:11.2]} 36... Kf5 {[%clk 0:00:29.5]} 37. Kg2 {[%clk 0:00:11.4]} 37...
h5 {[%clk 0:00:27]} 38. Rg8 {[%clk 0:00:09.7]} 38... g6 {[%clk 0:00:24.7]} 39.
Ra8 {[%clk 0:00:09]} 39... Ke4 {[%clk 0:00:21.4]} 40. Ra7 {[%clk 0:00:08.6]}
40... Kd5 {[%clk 0:00:19.8]} 41. Rg7 {[%clk 0:00:08.3]} 41... f5 {[%clk
0:00:20.2]} 42. Rc7 {[%clk 0:00:07.9]} 42... Kd6 {[%clk 0:00:19.3]} 43. Ra7
{[%clk 0:00:07.7]} 43... Kc5 {[%clk 0:00:19.7]} 44. a5 {[%clk 0:00:05.2]} 44...
Rd6 {[%clk 0:00:13.4]} 45. Rb7 {[%clk 0:00:05.2]} 45... e4 {[%clk 0:00:13.4]}
46. Kg1 {[%clk 0:00:04.5]} 46... Kd4 {[%clk 0:00:12.1]} 47. Kg2 {[%clk
0:00:04.6]} 47... Ke5 {[%clk 0:00:11.1]} 48. Re7+ {[%clk 0:00:04.2]} 48... Kd5
{[%clk 0:00:10.9]} 49. Rb7 {[%clk 0:00:04.3]} 49... Kc6 {[%clk 0:00:11.1]} 50.
Rb8 {[%clk 0:00:03.8]} 50... Kc5 {[%clk 0:00:10.4]} 51. Rb7 {[%clk 0:00:03.6]}
51... Rd2 {[%clk 0:00:10]} 52. Rb6 {[%clk 0:00:01.6]} 52... e3 {[%clk
0:00:10.1]} 0-1

[Event "*** Titled Tuesday Blitz"]
[Site "Chess.com"]
[Date "2020.05.12"]
[Round "1"]
[White "TenisMaster"]
[Black "jerry_77"]
[Result "0-1"]
[WhiteElo "2859"]
[BlackElo "2460"]
[TimeControl "180+1"]
[EndTime "10:08:06 PDT"]
[Termination "jerry_77 won on time"]

1. d4 {[%clk 0:03:00.9]} 1... Nf6 {[%clk 0:02:58.3]} 2. Bg5 {[%clk 0:03:00.2]}
2... d5 {[%clk 0:02:58]} 3. Bxf6 {[%clk 0:03:00.2]} 3... exf6 {[%clk 0:02:58.9]}
4. e3 {[%clk 0:03:00.6]} 4... c6 {[%clk 0:02:57.7]} 5. g3 {[%clk 0:02:56.8]}
5... Bd6 {[%clk 0:02:57.3]} 6. Bg2 {[%clk 0:02:56.9]} 6... O-O {[%clk
0:02:57.9]} 7. Nd2 {[%clk 0:02:56.6]} 7... Re8 {[%clk 0:02:56.8]} 8. Ne2 {[%clk
0:02:56.6]} 8... Nd7 {[%clk 0:02:54.9]} 9. c4 {[%clk 0:02:56.6]} 9... dxc4
{[%clk 0:02:53]} 10. Nxc4 {[%clk 0:02:57.5]} 10... Bb4+ {[%clk 0:02:53.1]} 11.
Nc3 {[%clk 0:02:57.1]} 11... Nb6 {[%clk 0:02:52.5]} 12. Nd2 {[%clk 0:02:48.6]}
12... f5 {[%clk 0:02:29.6]} 13. O-O {[%clk 0:02:47.6]} 13... h6 {[%clk
0:02:23.6]} 14. a3 {[%clk 0:02:47.2]} 14... Bf8 {[%clk 0:02:23.4]} 15. b4 {[%clk
0:02:42.6]} 15... a5 {[%clk 0:02:15.2]} 16. Rb1 {[%clk 0:02:42]} 16... axb4
{[%clk 0:02:03.6]} 17. axb4 {[%clk 0:02:42.9]} 17... Ra3 {[%clk 0:02:03.7]} 18.
Qc1 {[%clk 0:02:38.2]} 18... Ra8 {[%clk 0:01:58.1]} 19. Qc2 {[%clk 0:02:36.9]}
19... Be6 {[%clk 0:01:51.8]} 20. Rfd1 {[%clk 0:02:34.3]} 20... Qf6 {[%clk
0:01:39.7]} 21. b5 {[%clk 0:02:26.5]} 21... cxb5 {[%clk 0:01:30.1]} 22. Rxb5
{[%clk 0:02:21.6]} 22... Nc4 {[%clk 0:01:22.4]} 23. Nd5 {[%clk 0:02:00.9]} 23...
Bxd5 {[%clk 0:01:14.5]} 24. Bxd5 {[%clk 0:02:01.8]} 24... Na3 {[%clk 0:01:11.6]}
25. Qb3 {[%clk 0:01:54.7]} 25... Nxb5 {[%clk 0:01:09.8]} 26. Qxb5 {[%clk
0:01:55.6]} 26... Rad8 {[%clk 0:00:57.4]} 27. Nf3 {[%clk 0:01:47.9]} 27... f4
{[%clk 0:00:42.2]} 28. gxf4 {[%clk 0:01:40.2]} 28... Qf5 {[%clk 0:00:37.4]} 29.
Bxf7+ {[%clk 0:00:37.3]} 29... Qxf7 {[%clk 0:00:35.6]} 30. Ne5 {[%clk
0:00:37.3]} 30... Qf5 {[%clk 0:00:30.5]} 31. Qb3+ {[%clk 0:00:33.1]} 31... Kh7
{[%clk 0:00:27.5]} 32. Kh1 {[%clk 0:00:33.1]} 32... Rxe5 {[%clk 0:00:23.7]} 33.
dxe5 {[%clk 0:00:29.7]} 33... Qe4+ {[%clk 0:00:23.1]} 34. Kg1 {[%clk 0:00:29.4]}
34... Qg6+ {[%clk 0:00:23.2]} 35. Kf1 {[%clk 0:00:26.6]} 35... Rxd1+ {[%clk
0:00:23.3]} 36. Qxd1 {[%clk 0:00:27.4]} 36... b5 {[%clk 0:00:23.4]} 37. Qd5
{[%clk 0:00:22.7]} 37... b4 {[%clk 0:00:23.3]} 38. e6 {[%clk 0:00:22.8]} 38...
Qb1+ {[%clk 0:00:21.1]} 39. Kg2 {[%clk 0:00:22.6]} 39... Qg6+ {[%clk 0:00:21.2]}
40. Kf3 {[%clk 0:00:22.1]} 40... Qf6 {[%clk 0:00:20.6]} 41. e4 {[%clk
0:00:20.8]} 41... Qc3+ {[%clk 0:00:19.6]} 42. Kg4 {[%clk 0:00:20]} 42... Qf6
{[%clk 0:00:19.7]} 43. h4 {[%clk 0:00:17.2]} 43... b3 {[%clk 0:00:18.3]} 44.
Qxb3 {[%clk 0:00:16.3]} 44... Be7 {[%clk 0:00:18.9]} 45. Qd5 {[%clk 0:00:12]}
45... Qxh4+ {[%clk 0:00:19]} 46. Kf3 {[%clk 0:00:12.9]} 46... Qh3+ {[%clk
0:00:19.3]} 47. Ke2 {[%clk 0:00:12.4]} 47... Qg4+ {[%clk 0:00:19.8]} 48. Ke3
{[%clk 0:00:12.8]} 48... Qh3+ {[%clk 0:00:17.8]} 49. Ke2 {[%clk 0:00:12.6]}
49... Qg4+ {[%clk 0:00:15.8]} 50. Ke3 {[%clk 0:00:12.7]} 50... Qg6 {[%clk
0:00:16.4]} 51. Ke2 {[%clk 0:00:09]} 51... h5 {[%clk 0:00:16.1]} 52. e5 {[%clk
0:00:06.6]} 52... h4 {[%clk 0:00:15.9]} 53. Qf3 {[%clk 0:00:06]} 53... Qh6
{[%clk 0:00:15.4]} 54. Qg4 {[%clk 0:00:05.7]} 54... h3 {[%clk 0:00:15.8]} 55.
Qf5+ {[%clk 0:00:03.4]} 55... Kh8 {[%clk 0:00:15.2]} 56. Qe4 {[%clk 0:00:03.1]}
56... h2 {[%clk 0:00:15.4]} 57. Qa8+ {[%clk 0:00:02.8]} 57... Kh7 {[%clk
0:00:15.3]} 58. Qe4+ {[%clk 0:00:03.3]} 58... Qg6 {[%clk 0:00:15.6]} 0-1

[Event "*** Titled Tuesday Blitz"]
[Site "Chess.com"]
[Date "2020.05.12"]
[Round "1"]
[White "aa175"]
[Black "VladDobrov"]
[Result "0-1"]
[WhiteElo "2399"]
[BlackElo "2758"]
[TimeControl "180+1"]
[EndTime "10:08:07 PDT"]
[Termination "VladDobrov won by checkmate"]

1. d4 {[%clk 0:03:00.9]} 1... Nf6 {[%clk 0:02:59.4]} 2. Nf3 {[%clk 0:03:00.5]}
2... e6 {[%clk 0:02:59.6]} 3. Bf4 {[%clk 0:03:00.3]} 3... c5 {[%clk 0:03:00.1]}
4. e3 {[%clk 0:03:00.7]} 4... Nc6 {[%clk 0:03:01]} 5. Nbd2 {[%clk 0:03:00.8]}
5... d5 {[%clk 0:03:01.8]} 6. c3 {[%clk 0:03:00.5]} 6... Nh5 {[%clk 0:03:02.4]}
7. Be5 {[%clk 0:02:46.9]} 7... f6 {[%clk 0:02:49.8]} 8. Bg3 {[%clk 0:02:42.3]}
8... Qb6 {[%clk 0:02:49.3]} 9. Qb3 {[%clk 0:02:40.8]} 9... Bd7 {[%clk
0:02:45.7]} 10. Qxb6 {[%clk 0:02:34.6]} 10... axb6 {[%clk 0:02:46.6]} 11. Bc7
{[%clk 0:02:35.2]} 11... cxd4 {[%clk 0:02:25.4]} 12. exd4 {[%clk 0:02:04.5]}
12... Rc8 {[%clk 0:02:17.3]} 13. Bxb6 {[%clk 0:02:04.2]} 13... Bd6 {[%clk
0:02:16.8]} 14. Bc5 {[%clk 0:01:51.5]} 14... Bb8 {[%clk 0:02:14.8]} 15. g3
{[%clk 0:01:46.8]} 15... e5 {[%clk 0:02:09.2]} 16. Bg2 {[%clk 0:01:34.4]} 16...
e4 {[%clk 0:01:05.2]} 17. Ng1 {[%clk 0:01:33.9]} 17... f5 {[%clk 0:01:05.6]} 18.
Ne2 {[%clk 0:01:30.6]} 18... Nf6 {[%clk 0:01:02.5]} 19. Nf1 {[%clk 0:01:29.8]}
19... Kf7 {[%clk 0:01:00.7]} 20. Ne3 {[%clk 0:01:30]} 20... g5 {[%clk 0:01:01]}
21. f4 {[%clk 0:01:23.3]} 21... exf3 {[%clk 0:00:59.9]} 22. Bxf3 {[%clk
0:01:23.7]} 22... Rhe8 {[%clk 0:01:00.3]} 23. Nxd5 {[%clk 0:01:22.5]} 23... Nxd5
{[%clk 0:00:13.4]} 24. Bxd5+ {[%clk 0:01:23.4]} 24... Kg6 {[%clk 0:00:14.3]} 25.
Kf2 {[%clk 0:01:15.1]} 25... Ne5 {[%clk 0:00:14.6]} 26. Bxb7 {[%clk 0:01:03]}
26... Nd3+ {[%clk 0:00:14.9]} 27. Kg2 {[%clk 0:01:03.2]} 27... Nxc5 {[%clk
0:00:12.9]} 28. Bxc8 {[%clk 0:00:58.2]} 28... Bc6+ {[%clk 0:00:12.8]} 29. Kf2
{[%clk 0:00:44]} 29... Nd3+ {[%clk 0:00:12.4]} 30. Kf1 {[%clk 0:00:43.2]} 30...
Rxc8 {[%clk 0:00:11.6]} 31. Rg1 {[%clk 0:00:40.4]} 31... Re8 {[%clk 0:00:11.7]}
32. Rd1 {[%clk 0:00:18.3]} 32... Bf3 {[%clk 0:00:11.2]} 33. Rd2 {[%clk
0:00:16.9]} 33... Re3 {[%clk 0:00:09.6]} 34. h3 {[%clk 0:00:10.5]} 34... h5
{[%clk 0:00:08.9]} 35. b4 {[%clk 0:00:08.4]} 35... g4 {[%clk 0:00:06.7]} 36.
hxg4 {[%clk 0:00:08.1]} 36... fxg4 {[%clk 0:00:06.9]} 37. Rxd3 {[%clk
0:00:03.1]} 37... Rxd3 {[%clk 0:00:06.8]} 38. Kf2 {[%clk 0:00:04]} 38... Rd2
{[%clk 0:00:06.7]} 39. Re1 {[%clk 0:00:03.6]} 39... Rxa2 {[%clk 0:00:07.6]} 40.
c4 {[%clk 0:00:03.1]} 40... Bxe2 {[%clk 0:00:06.4]} 41. Rxe2 {[%clk 0:00:02.4]}
41... Bxg3+ {[%clk 0:00:07.3]} 42. Ke3 {[%clk 0:00:02]} 42... Ra3+ {[%clk
0:00:07.3]} 43. Ke4 {[%clk 0:00:02.1]} 43... h4 {[%clk 0:00:06.3]} 44. d5 {[%clk
0:00:01.7]} 44... h3 {[%clk 0:00:06.8]} 45. c5 {[%clk 0:00:02]} 45... h2 {[%clk
0:00:07.3]} 46. Rxh2 {[%clk 0:00:01.3]} 46... Bxh2 {[%clk 0:00:07.5]} 47. d6
{[%clk 0:00:01.9]} 47... Kf7 {[%clk 0:00:07.4]} 48. Kd5 {[%clk 0:00:02]} 48...
g3 {[%clk 0:00:07.1]} 49. d7 {[%clk 0:00:01.5]} 49... Ke7 {[%clk 0:00:07]} 50.
c6 {[%clk 0:00:01.8]} 50... Kd8 {[%clk 0:00:07.5]} 51. Kd6 {[%clk 0:00:01.8]}
51... g2+ {[%clk 0:00:08.1]} 52. Ke6 {[%clk 0:00:01.8]} 52... g1=Q {[%clk
0:00:08.1]} 53. c7+ {[%clk 0:00:02.5]} 53... Bxc7 {[%clk 0:00:07.7]} 54. b5
{[%clk 0:00:03.4]} 54... Ra5 {[%clk 0:00:07.6]} 55. Kf6 {[%clk 0:00:04.3]} 55...
Rxb5 {[%clk 0:00:07.5]} 56. Kf7 {[%clk 0:00:05.2]} 56... Rb6 {[%clk 0:00:07.1]}
57. Kf8 {[%clk 0:00:05.4]} 57... Rf6# {[%clk 0:00:08]} 0-1

[Event "*** Titled Tuesday Blitz"]
[Site "Chess.com"]
[Date "2020.05.12"]
[Round "1"]
[White "Artem_Sadovsky"]
[Black "L_lorenzo"]
[Result "1-0"]
[WhiteElo "2537"]
[BlackElo "2197"]
[TimeControl "180+1"]
[EndTime "10:08:08 PDT"]
[Termination "Artem_Sadovsky won on time"]

1. Nf3 {[%clk 0:02:55.7]} 1... Nf6 {[%clk 0:02:58.4]} 2. g3 {[%clk 0:02:52.5]}
2... c5 {[%clk 0:02:55.8]} 3. Bg2 {[%clk 0:02:53.4]} 3... Nc6 {[%clk 0:02:55.1]}
4. O-O {[%clk 0:02:54.3]} 4... e6 {[%clk 0:02:54]} 5. b3 {[%clk 0:02:51.7]} 5...
Be7 {[%clk 0:02:53.4]} 6. Bb2 {[%clk 0:02:52.6]} 6... O-O {[%clk 0:02:53.2]} 7.
c4 {[%clk 0:02:51.5]} 7... d5 {[%clk 0:02:53.3]} 8. cxd5 {[%clk 0:02:52.4]} 8...
exd5 {[%clk 0:02:52.2]} 9. d4 {[%clk 0:02:52.5]} 9... b6 {[%clk 0:02:37.7]} 10.
Nc3 {[%clk 0:02:45.2]} 10... Bb7 {[%clk 0:02:37.4]} 11. Rc1 {[%clk 0:02:44.1]}
11... Rc8 {[%clk 0:02:35.8]} 12. dxc5 {[%clk 0:02:30]} 12... bxc5 {[%clk
0:02:34.5]} 13. Na4 {[%clk 0:02:30.1]} 13... Nb4 {[%clk 0:02:15.3]} 14. a3
{[%clk 0:02:24.2]} 14... Na6 {[%clk 0:02:14.9]} 15. Ne5 {[%clk 0:02:18.3]} 15...
Qd6 {[%clk 0:01:58.7]} 16. Qd3 {[%clk 0:02:06.5]} 16... Rfd8 {[%clk 0:01:49.6]}
17. Rfd1 {[%clk 0:02:04.7]} 17... Rc7 {[%clk 0:01:39.7]} 18. Qf5 {[%clk
0:01:46.4]} 18... Qe6 {[%clk 0:01:35.2]} 19. Qxe6 {[%clk 0:01:21.6]} 19... fxe6
{[%clk 0:01:34.9]} 20. Bh3 {[%clk 0:01:22.5]} 20... Bc8 {[%clk 0:01:30.9]} 21.
b4 {[%clk 0:01:07.1]} 21... cxb4 {[%clk 0:01:26.7]} 22. Rxc7 {[%clk 0:01:08]}
22... Nxc7 {[%clk 0:01:26.7]} 23. Nc6 {[%clk 0:01:08.9]} 23... Re8 {[%clk
0:01:23.4]} 24. Nxe7+ {[%clk 0:01:08]} 24... Rxe7 {[%clk 0:01:23.4]} 25. axb4
{[%clk 0:01:07.2]} 25... Nb5 {[%clk 0:01:14.4]} 26. Nc5 {[%clk 0:00:59.7]} 26...
Kf7 {[%clk 0:01:12.6]} 27. Nd3 {[%clk 0:00:56]} 27... Ne4 {[%clk 0:01:03.7]} 28.
Ne5+ {[%clk 0:00:52.3]} 28... Kf8 {[%clk 0:01:03.2]} 29. Bd4 {[%clk 0:00:50.5]}
29... Re8 {[%clk 0:00:51.4]} 30. Be3 {[%clk 0:00:44.1]} 30... Nbc3 {[%clk
0:00:46]} 31. Re1 {[%clk 0:00:43.7]} 31... Ba6 {[%clk 0:00:40]} 32. f3 {[%clk
0:00:43.3]} 32... Nf6 {[%clk 0:00:29.8]} 33. Kf2 {[%clk 0:00:40]} 33... Bb5
{[%clk 0:00:14.2]} 34. Bxa7 {[%clk 0:00:35.4]} 34... Ra8 {[%clk 0:00:13.9]} 35.
Bd4 {[%clk 0:00:35.2]} 35... Nxe2 {[%clk 0:00:10.7]} 36. Rxe2 {[%clk 0:00:32]}
36... Bxe2 {[%clk 0:00:11.2]} 37. Kxe2 {[%clk 0:00:32.9]} 37... Ra2+ {[%clk
0:00:11.7]} 38. Kd3 {[%clk 0:00:33.1]} 38... Rxh2 {[%clk 0:00:11.2]} 39. Bxe6
{[%clk 0:00:33.6]} 39... Ke7 {[%clk 0:00:11.2]} 40. Bc8 {[%clk 0:00:25.1]} 40...
Kd8 {[%clk 0:00:10.7]} 41. Bf5 {[%clk 0:00:21.4]} 41... g6 {[%clk 0:00:10.1]}
42. Nc6+ {[%clk 0:00:21.7]} 42... Kc7 {[%clk 0:00:08.2]} 43. Bxf6 {[%clk
0:00:22.3]} 43... Kxc6 {[%clk 0:00:08.3]} 44. Be6 {[%clk 0:00:20.2]} 44... Kd6
{[%clk 0:00:08]} 45. Bg8 {[%clk 0:00:19.6]} 45... Rh3 {[%clk 0:00:06.9]} 46. Bg5
{[%clk 0:00:18.9]} 46... h5 {[%clk 0:00:06.4]} 47. Kd4 {[%clk 0:00:18]} 47...
Rh2 {[%clk 0:00:04.3]} 48. Bf4+ {[%clk 0:00:16.3]} 48... Kd7 {[%clk 0:00:02.4]}
49. Bxd5 {[%clk 0:00:17.2]} 49... Rb2 {[%clk 0:00:01.8]} 50. Kc5 {[%clk
0:00:15.9]} 50... Rc2+ {[%clk 0:00:01.4]} 51. Bc4 {[%clk 0:00:15.7]} 1-0

[Event "*** Titled Tuesday Blitz"]
[Site "Chess.com"]
[Date "2020.05.12"]
[Round "1"]
[White "ALeks_Ivlev"]
[Black "AndrewDGreen"]
[Result "1-0"]
[WhiteElo "2609"]
[BlackElo "2289"]
[TimeControl "180+1"]
[EndTime "10:08:10 PDT"]
[Termination "ALeks_Ivlev won by checkmate"]

1. d4 {[%clk 0:02:59.6]} 1... Nf6 {[%clk 0:02:58.4]} 2. c4 {[%clk 0:02:59.2]}
2... g6 {[%clk 0:02:58.6]} 3. Nc3 {[%clk 0:02:57]} 3... Bg7 {[%clk 0:02:58.7]}
4. e4 {[%clk 0:02:55.1]} 4... d6 {[%clk 0:02:58.9]} 5. Be2 {[%clk 0:02:55.1]}
5... O-O {[%clk 0:02:58.1]} 6. Bg5 {[%clk 0:02:52.8]} 6... c5 {[%clk 0:02:57.2]}
7. d5 {[%clk 0:02:50.7]} 7... h6 {[%clk 0:02:56.6]} 8. Be3 {[%clk 0:02:48.1]}
8... e6 {[%clk 0:02:56.3]} 9. dxe6 {[%clk 0:02:46.3]} 9... Bxe6 {[%clk
0:02:36.9]} 10. h3 {[%clk 0:02:45.4]} 10... Nc6 {[%clk 0:02:36]} 11. Nf3 {[%clk
0:02:45.2]} 11... Re8 {[%clk 0:02:34.2]} 12. O-O {[%clk 0:02:44.9]} 12... Qe7
{[%clk 0:02:11.2]} 13. Qd2 {[%clk 0:02:43.1]} 13... Kh7 {[%clk 0:02:09.7]} 14.
Rad1 {[%clk 0:02:39.5]} 14... Rad8 {[%clk 0:02:09.5]} 15. Rfe1 {[%clk
0:02:15.5]} 15... b6 {[%clk 0:01:40.6]} 16. Bf1 {[%clk 0:02:10.9]} 16... Bc8
{[%clk 0:01:26.6]} 17. Bf4 {[%clk 0:01:59.3]} 17... Ne5 {[%clk 0:00:55.6]} 18.
Bxe5 {[%clk 0:01:41.4]} 18... dxe5 {[%clk 0:00:54.8]} 19. Nd5 {[%clk 0:01:38.9]}
19... Nxd5 {[%clk 0:00:53.6]} 20. cxd5 {[%clk 0:01:30.5]} 20... Bd7 {[%clk
0:00:46.6]} 21. Qc2 {[%clk 0:01:15.5]} 21... Qd6 {[%clk 0:00:45]} 22. Nd2 {[%clk
0:01:07.1]} 22... b5 {[%clk 0:00:44.6]} 23. a4 {[%clk 0:01:03.9]} 23... a6
{[%clk 0:00:44.5]} 24. Ra1 {[%clk 0:00:43.7]} 24... f5 {[%clk 0:00:43.2]} 25.
axb5 {[%clk 0:00:36.4]} 25... axb5 {[%clk 0:00:43]} 26. Ra7 {[%clk 0:00:32.6]}
26... Ra8 {[%clk 0:00:31.8]} 27. Rea1 {[%clk 0:00:31.4]} 27... Rab8 {[%clk
0:00:20.3]} 28. R1a6 {[%clk 0:00:29.2]} 28... Qe7 {[%clk 0:00:17.6]} 29. d6
{[%clk 0:00:28.6]} 29... Qe6 {[%clk 0:00:15.1]} 30. Qxc5 {[%clk 0:00:29]} 30...
Rec8 {[%clk 0:00:14.6]} 31. Qd5 {[%clk 0:00:29.1]} 31... f4 {[%clk 0:00:10.3]}
32. Nb3 {[%clk 0:00:24.9]} 32... Qxd5 {[%clk 0:00:06]} 33. exd5 {[%clk
0:00:24.8]} 33... Bf5 {[%clk 0:00:06.5]} 34. Rc6 {[%clk 0:00:19.3]} 34... Rd8
{[%clk 0:00:06.4]} 35. Rcc7 {[%clk 0:00:18]} 35... Rg8 {[%clk 0:00:05.4]} 36.
Nc5 {[%clk 0:00:18]} 36... Kh8 {[%clk 0:00:04.3]} 37. Ne6 {[%clk 0:00:17.7]}
37... Bxe6 {[%clk 0:00:04.2]} 38. dxe6 {[%clk 0:00:17.9]} 38... e4 {[%clk
0:00:05.1]} 39. e7 {[%clk 0:00:16.2]} 39... Bf6 {[%clk 0:00:03.9]} 40. Be2
{[%clk 0:00:07.7]} 40... e3 {[%clk 0:00:03.6]} 41. fxe3 {[%clk 0:00:08]} 41...
fxe3 {[%clk 0:00:04.5]} 42. Bf3 {[%clk 0:00:08.8]} 42... b4 {[%clk 0:00:04.1]}
43. Kf1 {[%clk 0:00:09.2]} 43... Rge8 {[%clk 0:00:03.8]} 44. Ke2 {[%clk
0:00:09.6]} 44... b3 {[%clk 0:00:04.1]} 45. Be4 {[%clk 0:00:10]} 45... Bxb2
{[%clk 0:00:04.1]} 46. Bxg6 {[%clk 0:00:10]} 46... Bd4 {[%clk 0:00:04.3]} 47.
Bxe8 {[%clk 0:00:10]} 47... Bxa7 {[%clk 0:00:03.7]} 48. Bb5 {[%clk 0:00:09.3]}
48... b2 {[%clk 0:00:04]} 49. Bd3 {[%clk 0:00:09.6]} 49... Bd4 {[%clk
0:00:03.1]} 50. d7 {[%clk 0:00:09.9]} 50... Bf6 {[%clk 0:00:03]} 51. e8=Q+
{[%clk 0:00:10.3]} 51... Rxe8 {[%clk 0:00:02.6]} 52. dxe8=Q# {[%clk 0:00:10.7]}
1-0